[Event "MCC Labor Day Schev 2024"]
[Site "New York"]
[Date "2024.08.31"]
[Round "4.9"]
[White "Hoffman, Luc"]
[Black "Martin Del Campo Cardenas, Roberto Abel"]
[Result "1/2-1/2"]
[ECO "A45"]
[WhiteElo "2067"]
[BlackElo "2216"]
[Annotator "RC"]
[PlyCount "45"]
[EventDate "2024.08.28"]
[EventType "schev"]
[EventCountry "USA"]
[SourceTitle "playchess.com"]
[Source "ChessBase"]
[SourceQuality "1"]
[TimeControl "5400+30"]

1. d4 {[%emt 0:00:02]} Nf6 {[%emt 0:11:07]} 2. Bg5 {[%emt 0:02:53]} Ne4 {[%emt 0:01:48]} 3. h4 {[%emt 0:00:58]} c5 {[%emt 0:03:02]} 4. d5 {[%emt 0:00:19]} g6 {[%emt 0:03:32]} 5. Bf4 {[%emt 0:09:07]} Qb6 {[%emt 0:06:54]} 6. Qc1 {[%emt 0:09:51]} Bg7 {[%emt 0:01:06]} 7. c3 {[%emt 0:00:20]} Nf6 {[%emt 0:20:43]} 8. Be5 {[%emt 0:08:37]} d6 {[%emt 0:00:31]} 9. Bxf6 {[%emt 0:00:07]} Bxf6 {[%emt 0:00:27]} 10. Nd2 {[%emt 0:00:56]} h5 {[%emt 0:03:21]} 11. e4 {[%emt 0:01:17]} Bg7 {[%emt 0:05:15]} 12. Ngf3 {[%emt 0:01:36]} Nd7 {[%emt 0:01:50]} 13. Bd3 {[%emt 0:01:17]} Qd8 {[%emt 0:05:22]} 14. Qc2 {[%emt 0:00:58]} a6 {[%emt 0:01:27]} 15. a4 {[%emt 0:01:48]} b6 {[%emt 0:02:03]} 16. O-O {[%emt 0:02:36]} O-O {[%emt 0:00:19]} 17. Rfe1 {[%emt 0:01:13]} Ne5 {[%emt 0:01:06]} 18. Nxe5 {[%emt 0:00:31]} Bxe5 {[%emt 0:00:01]} 19. Nf3 {[%emt 0:00:27]} Bf6 {[%emt 0:02:26]} 20. e5 {[%emt 0:01:13]} dxe5 {[%emt 0:00:36]} 21. Nxe5 {[%emt 0:00:07]} Qd6 {[%emt 0:06:55]} 22. Nc4 {[%emt 0:07:24]} Qc7 {[%emt 0:00:17]} 23. Be4 {[%emt 0:02:12]} 1/2-1/2

[Event "MCC Labor Day Schev 2024"]
[Site "New York"]
[Date "2024.09.01"]
[Round "5.1"]
[White "Sloan, Jed"]
[Black "Colas, Joshua"]
[Result "0-1"]
[ECO "B29"]
[WhiteElo "2039"]
[BlackElo "2224"]
[Annotator "TA"]
[PlyCount "58"]
[EventDate "2024.08.28"]
[EventType "schev"]
[EventCountry "USA"]
[SourceTitle "playchess.com"]
[Source "ChessBase"]
[SourceQuality "1"]
[TimeControl "5400+30"]

{[%evp 9,58,23,17,1,51,16,29,-9,7,-7,131,117,102,83,77,22,35,8,91,97,95,102,129,13,0,-25,-21,-152,-136,-145,-142,-148,-147,-139,-154,-139,-66,-61,-66,-114,-112,-138,-104,-207,-207,-304,-304,-1027,-1010,-871,-862]} 1. e4 {[%emt 0:00:01]} c5 {[%emt 0:07:27]} 2. Nf3 {[%emt 0:00:16]} Nf6 {[%emt 0:00:13]} 3. e5 {[%emt 0:00:20]} Nd5 {[%emt 0:00:07]} 4. Nc3 {[%emt 0:00:54]} e6 {[%emt 0:00:07]} 5. Ne4 {[%emt 0:00:57]} Nc6 {[%emt 0:02:09]} 6. Bb5 {[%emt 0:19:45]} Qc7 {[%emt 0:07:30]} ({Better is} 6... f5 $11 7. exf6 Nxf6 8. Nxf6+ Qxf6) 7. Bxc6 $14 {[%emt 0:03:51]} Qxc6 {[%emt 0:00:18]} 8. O-O {[%emt 0:05:44] White has an edge.} Be7 {[%emt 0:03:13]} 9. d3 {[%emt 0:11:25]} h6 {[%emt 0:00:39] Inhibits Bg5.} (9... f5 $11 10. Ng3 b6) 10. c4 $16 {[%emt 0:01:45]} Nc7 {[%emt 0:02:38][%cal Bd5c7,Bc7e8,Be8f6][%mdl 32]} 11. Bf4 {[%emt 0:01:58]} O-O {[%emt 0:01:56]} 12. Nfd2 {[%emt 0:11:31]} (12. Re1 $16) 12... Ne8 $11 {[%emt 0:01:29] Inhibits Nf6+.} 13. Qh5 {[%emt 0:03:50][%cal Of4h6] Threatening Bxh6!} f5 {[%emt 0:10:28]} (13... d5 $1 $11 14. exd6 Nxd6) 14. exf6 $16 {[%emt 0:01:38]} Nxf6 {[%emt 0:00:12]} 15. Qg6 {[%emt 0:02:22]} Kh8 {[%emt 0:00:01]} 16. Rae1 {[%emt 0:06:34]} (16. Nf3 $1 $16 {[%cal Of4h6] And now Bxh6! would win.} Nxe4 17. Ne5) 16... d6 $11 {[%emt 0:02:40]} 17. Nxf6 {[%emt 0:03:00]} Rxf6 {[%emt 0:00:27]} 18. Qg3 {[%emt 0:00:24]} (18. Qe4 $1 $11) 18... e5 $17 {[%emt 0:01:15]} 19. Be3 {[%emt 0:00:31]} Bf5 {[%emt 0:00:17][%cal Of6g6] Repels Ne4. aiming for ...Rg6!} 20. Ne4 {[%emt 0:01:06]} Rg6 {[%emt 0:00:54]} (20... Bxe4 21. dxe4 Qxe4 22. Bxh6 $16) 21. Qf3 {[%emt 0:00:40]} Rf8 {[%emt 0:00:05]} 22. Qh5 {[%emt 0:02:49]} Bxe4 {[%emt 0:01:56]} (22... Kh7 $1 $17 {[%cal Of5g4] Hoping for ...Bg4!} 23. f3 Qa4) 23. dxe4 $15 {[%emt 0:00:13]} Qxe4 {[%emt 0:00:04][%csl Gg6][%cal Re4g2]} 24. f3 {[%emt 0:01:03]} (24. g3 $15) 24... Qd3 $1 $17 {[%emt 0:00:49][%cal Oe7g5]} (24... Qxc4 $2 {loses.} 25. Qxg6 Qxa2 26. f4 Qxb2 27. fxe5 Qxe5 28. Rxf8+ Bxf8 29. Qf7 $18) 25. b3 {[%emt 0:01:30]} Bd8 {[%emt 0:01:18][%cal Be7d8,Bd8a5,Ba5c3][%mdl 32] ...Ba5 would now be deadly. Black is more active.} 26. Bc1 {[%emt 0:02:39] [#]} (26. f4 $17) 26... Ba5 $1 $40 {[%emt 0:00:31][%mdl 128] Black has strong attack. White is weak on the dark squares} 27. Re4 {[%emt 0:02:46]} (27. Re3 $142 Qc2 28. g4) 27... Kh7 {[%emt 0:00:23]} 28. Rg4 $2 {[%emt 0:01:05]} (28. Be3) 28... Rxg4 29. Qxg4 {[%emt 0:00:30] [#]} Bc3 $1 {Weighted Error Value: White=0.63/Black=0.20 (precise) .  Mistake:       	White=7     	Black=4      Inaccurate:     	White=2     	---        OK:         	White=7     	Black=7      Best:        	White=1     	Black=2      Strong:       	---       	Black=2} 0-1

[Event "MCC Labor Day Schev 2024"]
[Site "New York"]
[Date "2024.09.01"]
[Round "5.2"]
[White "Stern, Kevin B"]
[Black "Almeida Saenz, Alfonso"]
[Result "0-1"]
[ECO "E01"]
[WhiteElo "1920"]
[BlackElo "2202"]
[Annotator "TA"]
[PlyCount "162"]
[EventDate "2024.08.28"]
[EventType "schev"]
[EventCountry "USA"]
[SourceTitle "playchess.com"]
[Source "ChessBase"]
[SourceQuality "1"]
[TimeControl "5400+30"]

{[%evp 10,162,43,36,28,34,34,29,42,36,71,42,50,36,66,52,58,48,110,49,53,45,44,41,114,126,113,94,91,98,83,18,55,10,18,16,18,14,212,-39,-32,-37,-19,-16,-20,-16,-16,-17,-18,-39,-13,-25,-12,-23,-13,-25,-12,-25,-7,-7,-1,-6,-6,-11,-11,-16,-16,-41,-8,-40,-17,-20,-18,-19,0,-19,0,-39,0,-12,-9,-8,-9,-11,-11,-12,-13,-12,-12,-13,-24,-63,-63,-64,-64,-71,-71,-71,-71,-71,-71,-71,-52,-155,-170,-240,-71,-71,-71,-71,-75,-71,-71,-71,-8,-8,-8,-434,-8,-12,-14,-29969,-29970,-29970,-29971,-29971,-29972,-29972,-29970,-29970,-29969,-29981,-29982,-29983,-29982,-29982,-29982,-29982,-29979,-29980,-29981,-29982,-29983,-29982,-29955,-29979,0,-29982,-29983,-29984,-29984,-29984,-29985,-29986,-29987]} 1. d4 {[%emt 0:00:07]} Nf6 {[%emt 0:00:26]} 2. Nf3 {[%emt 0:00:06]} d5 {[%emt 0:00:11]} 3. c4 {[%emt 0:00:08]} e6 {[%emt 0:00:05]} 4. g3 {[%emt 0:00:03]} c5 {[%emt 0:00:31]} 5. cxd5 {[%emt 0:03:58]} Nxd5 {[%emt 0:00:21]} 6. Bg2 {[%emt 0:00:49]} cxd4 {[%emt 0:00:11]} 7. Nxd4 {[%emt 0:00:33]} Bb4+ {[%emt 0:00:18]} 8. Bd2 {[%emt 0:00:42]} Bc5 {[%emt 0:01:09] White has an edge.} 9. Nb3 {[%emt 0:00:43]} Be7 {[%emt 0:00:18]} 10. O-O {[%emt 0:01:04]} O-O {[%emt 0:00:14]} 11. Nc3 {[%emt 0:00:32]} Nb6 {[%emt 0:01:47]} 12. Rc1 {[%emt 0:02:57]} Nc6 {[%emt 0:00:06]} 13. Qc2 {[%emt 0:03:17]} a5 {[%emt 0:03:37]} (13... Bd7 $14) 14. a4 {[%emt 0:02:38]} (14. Rfd1 $16) 14... Bd7 $14 {[%emt 0:00:31]} 15. Rfd1 {[%emt 0:03:35]} Nb4 {[%emt 0:00:14][%csl LRa4,LRc2]} 16. Qb1 {[%emt 0:00:27]} Qe8 {[%emt 0:02:33]} (16... N6d5 $14) 17. Bxb7 $16 {[%emt 0:06:39]} Ra7 {[%emt 0:00:29]} 18. Bg2 {[%emt 0:00:34]} Bxa4 {[%emt 0:02:08]} 19. Nxa4 {[%emt 0:01:40]} Qxa4 {[%emt 0:00:06]} 20. Nc5 {[%emt 0:03:11]} ({White should play} 20. Be3 $16 Qxb3 21. Bxb6) 20... Qb5 {[%emt 0:00:11]} 21. Nd3 {[%emt 0:03:07]} (21. Be3 {is interesting.} Rc7 22. Nxe6 Rxc1 23. Rxc1 fxe6 24. Qe4) 21... Nxd3 {[%emt 0:01:38]} 22. Qxd3 {[%emt 0:01:11]} Qxd3 {[%emt 0:02:35]} 23. exd3 {[%emt 0:00:16]} Na4 $2 {[%emt 0:02:57]} (23... Nd5 $11) 24. Bc3 $2 {[%emt 0:04:57]} ({Only move:} 24. Be3 $18 Ra6 25. b3) 24... Nxc3 $15 {[%emt 0:04:48]} 25. Rxc3 {[%emt 0:00:33]} Bb4 {[%emt 0:00:30]} 26. Rc4 {[%emt 0:02:41]} Rd7 {[%emt 0:00:33]} 27. d4 {[%emt 0:02:25]} Rfd8 {[%emt 0:00:07]} 28. d5 {[%emt 0:02:13]} Kf8 {[%emt 0:00:27]} 29. Rcd4 {[%emt 0:01:54]} h6 {[%emt 0:00:15]} 30. R4d3 {[%emt 0:01:16]} Rd6 {[%emt 0:02:59]} 31. Kf1 {[%emt 0:04:52]} Ke7 {[%emt 0:01:18]} 32. b3 {[%emt 0:02:19]} g5 {[%emt 0:02:26]} 33. g4 {[%emt 0:01:23]} Rc8 {[%emt 0:00:29]} 34. Be4 {[%emt 0:04:19]} Rc5 {[%emt 0:02:28]} 35. dxe6 {[%emt 0:02:01]} Rxd3 {[%emt 0:00:06]} (35... Rxe6 36. Bf5 Ree5 37. h4) 36. Bxd3 {[%emt 0:02:26]} fxe6 $11 {[%emt 0:00:07][%mdl 4096] Endgame. KRB-KRB} 37. Rb1 {[%emt 0:00:52]} Rc3 {[%emt 0:00:10]} 38. Ke2 {[%emt 0:00:13]} Bd6 {[%emt 0:00:08]} 39. h3 {[%emt 0:00:38]} Be5 {[%emt 0:00:13]} 40. Kd2 {[%emt 0:01:22]} Rc8 {[%emt 0:00:09]} 41. Ke2 {[%emt 0:01:09]} Bd4 {[%emt 0:00:25]} 42. f3 {[%emt 0:03:17]} Kd6 {[%emt 0:00:25]} 43. Rd1 {[%emt 0:01:22]} Ke5 {[%emt 0:00:15]} 44. Bb5 {[%emt 0:03:24]} Rc3 {[%emt 0:01:43]} 45. Rd3 {[%emt 0:00:36]} Rc5 {[%emt 0:00:08]} 46. Bd7 {[%emt 0:01:21]} Rd5 {[%emt 0:00:22]} 47. Bc6 {[%emt 0:00:42]} Rd6 {[%emt 0:00:10]} 48. Ba4 {[%emt 0:00:56]} Kf4 {[%emt 0:00:07]} 49. Rd1 {[%emt 0:00:57]} Kg3 {[%emt 0:00:11][%cal Oe6e5]} 50. Bb5 {[%emt 0:00:43]} e5 {[%emt 0:00:16]} ({Of course not} 50... Kxh3 51. Rh1+ Kg3 52. Rxh6 $11) 51. Bd3 {[%emt 0:01:58]} Kxh3 {[%emt 0:00:13]} 52. Rc1 {[%emt 0:02:29]} Rb6 {[%emt 0:00:30]} 53. Rb1 {[%emt 0:00:10]} Kg3 {[%emt 0:00:07]} 54. Be4 {[%emt 0:00:12]} Kf4 {[%emt 0:00:15]} 55. Bd3 {[%emt 0:00:35]} Rc6 {[%emt 0:00:08] White must now prevent ...Rc3.} 56. Be4 {[%emt 0:00:25]} ({White should try} 56. b4 $15) 56... Rc3 $17 {[%emt 0:00:11][%cal Oh6h5]} 57. Bd3 {[%emt 0:01:17] [#]} (57. Bb7 $142) 57... Rc7 $2 {[%emt 0:00:36]} (57... Kg3 $1 $19 {is more deadly. Hoping for ...Kf4.} 58. Be4 h5 59. gxh5 g4) 58. Rh1 {[%emt 0:00:58]} Rb7 {[%emt 0:00:45]} 59. Rb1 {[%emt 0:00:17]} Rb6 {[%emt 0:00:10]} 60. Be4 {[%emt 0:00:32]} Rb4 {[%emt 0:04:53] Black is more active.} 61. Bd3 {[%emt 0:01:05]} a4 {[%emt 0:04:13]} (61... Rb8 $17 62. Be4 Rb5) 62. bxa4 $11 {[%emt 0:00:10]} Rxa4 {[%emt 1:05:38] aiming for ...Ra2+.} 63. Rd1 $2 {[%emt 0:09:39][%mdl 8192]} (63. Rc1 $1 $11 {and White has nothing to worry.}) 63... Ra3 $2 {[%emt 0:00:00]} (63... Ra2+ $19 64. Rd2 Rxd2+ 65. Kxd2 Kxf3 66. Be2+ Kf2) 64. Rd2 {[%emt 0:02:35]} Ra1 {[%emt 0:00:00] With the idea ...Be3.} 65. Rd1 $2 {[%emt 0:09:33][%mdl 8192] Black converts the advantage convincingly.} (65. Bc4 $11) 65... Rxd1 {[%emt 0:00:00]} 66. Kxd1 {[%emt 0:00:01]} Kxf3 {[%emt 0:00:00] KB-KB} 67. Be2+ {[%emt 0:00:03]} Kf2 {[%emt 0:00:00]} 68. Bd3 {[%emt 0:00:32]} Ke3 {[%emt 0:00:00]} 69. Be2 {[%emt 0:00:13] [#]} Bc3 $1 {[%emt 0:03:30]} 70. Bb5 {[%emt 0:00:21]} e4 {[%emt 0:00:00]} 71. Be2 {[%emt 0:00:05]} Bb4 {[%emt 0:00:00]} 72. Bb5 {[%emt 0:00:07]} Kf3 {[%emt 0:00:00]} 73. Be2+ {[%emt 0:00:06]} Kf4 {[%emt 0:00:00]} 74. Kc2 {[%emt 0:00:08]} Ke3 {[%emt 0:00:00]} 75. Kd1 {[%emt 0:00:13]} Bc3 {[%emt 0:00:00]} 76. Bb5 {[%emt 0:00:15]} Kf4 {[%emt 0:00:00]} 77. Be2 {[%emt 0:00:09]} Ke3 {[%emt 0:00:00]} 78. Bb5 $1 {[%emt 0:01:07] [#]} h5 $1 {[%emt 0:00:00] Black mates.} 79. gxh5 {[%emt 0:00:04]} (79. Bd7 h4) 79... g4 {[%emt 0:00:00]} 80. Bd7 {[%emt 0:00:33]} g3 {[%emt 0:00:00]} 81. Bh3 {[%emt 0:00:04]} Kf2 {[%emt 0:00:00] Weighted Error Value: White=0.22 (precise) /Black=0.22 (precise) .  Loses game:     	White=2     	Black=1      Missed win:     	White=1     	Black=2      Mistake:       	White=4     	Black=3      Inaccurate:     	White=5     	Black=6      OK:         	White=18    	Black=20     Best:        	White=3     	Black=3} 0-1

[Event "MCC Labor Day Schev 2024"]
[Site "New York"]
[Date "2024.09.01"]
[Round "5.3"]
[White "Rohde, Michael"]
[Black "Hoffman, Luc"]
[Result "1-0"]
[ECO "E12"]
[WhiteElo "2280"]
[BlackElo "2067"]
[Annotator "TA"]
[PlyCount "29"]
[EventDate "2024.08.28"]
[EventType "schev"]
[EventCountry "USA"]
[SourceTitle "playchess.com"]
[Source "ChessBase"]
[SourceQuality "1"]
[TimeControl "5400+30"]

{[%evp 12,29,0,-4,43,34,111,59,172,175,285,312,316,306,428,443,502,487,609,624]} 1. Nf3 {[%emt 0:00:07]} Nf6 {[%emt 0:00:08]} 2. c4 {[%emt 0:00:03]} b6 {[%emt 0:01:34]} 3. Nc3 {[%emt 0:00:23]} Bb7 {[%emt 0:00:09]} 4. d4 {[%emt 0:00:11]} e6 {[%emt 0:00:10]} 5. a3 {[%emt 0:00:08]} d5 {[%emt 0:00:11]} 6. cxd5 {[%emt 0:00:13]} Nxd5 {[%emt 0:00:24]} 7. Bd2 {[%emt 0:00:33][%cal Bc1d2,Bd2f4,Bf4c7][%mdl 32]} c5 {[%emt 0:04:34]} (7... Nd7 $11) 8. e4 $14 {[%emt 0:02:43]} Nf6 {[%emt 0:07:48]} (8... Nxc3 $14 9. Bxc3 Nd7) 9. Bb5+ {[%emt 0:05:31]} ({White should try} 9. d5 $16) 9... Bc6 {[%emt 0:02:35]} (9... Nbd7 $14) 10. Qa4 $18 {[%emt 0:01:08]} Bxb5 {[%emt 0:03:07]} (10... Bd7 {was called for.}) 11. Nxb5 {[%emt 0:02:11] [#] Hoping for Bf4.} (11. Qxb5+ Nbd7 $16) 11... Nbd7 {[%emt 0:02:02]} 12. Bf4 {[%emt 0:00:57]} (12. Nxa7 $2 {perishes.} Qb8 (12... Nxe4 13. Be3 $15) 13. O-O Qxa7 $19 (13... Rxa7 $2 14. Qc2 $19)) 12... Rc8 {[%emt 0:17:44] Inhibits Nc7+.} 13. Qxa7 {[%emt 0:01:24] White is clearly winning.} ({Weaker is} 13. Nxa7 Ra8 $16) 13... Nxe4 {[%emt 0:02:55]} 14. Bc7 {[%emt 0:04:22]} Ra8 {[%emt 0:00:04] [#] aiming for ...Qc8.} 15. Qb7 {[%emt 1:18:06] White took control after the opening.   Weighted Error Value: White=0.08 (flawless) /Black=0.83.  Mistake:       	White=1     	Black=3      Inaccurate:     	---       	Black=1      OK:         	White=4     	---        Best:        	White=2     	Black=1} 1-0

[Event "MCC Labor Day Schev 2024"]
[Site "New York"]
[Date "2024.09.01"]
[Round "5.4"]
[White "Patel, Maahir M"]
[Black "Podavonov, Alisher"]
[Result "1/2-1/2"]
[ECO "A30"]
[WhiteElo "2005"]
[BlackElo "2140"]
[Annotator "TA"]
[PlyCount "49"]
[EventDate "2024.08.28"]
[EventType "schev"]
[EventCountry "USA"]
[SourceTitle "playchess.com"]
[Source "ChessBase"]
[SourceQuality "1"]
[TimeControl "5400+30"]

{[%evp 24,49,37,35,36,31,31,27,36,18,27,-29,27,-41,23,-30,-27,-28,0,0,0,0,159,152,168,168,168,0]} 1. Nf3 {[%emt 0:00:01]} Nf6 {[%emt 0:00:09]} 2. g3 {[%emt 0:00:13]} b6 {[%emt 0:00:16]} 3. Bg2 {[%emt 0:00:09]} Bb7 {[%emt 0:00:01]} 4. O-O {[%emt 0:00:09]} c5 {[%emt 0:00:12]} 5. c4 {[%emt 0:00:12]} e6 {[%emt 0:00:13]} 6. Nc3 {[%emt 0:00:11]} d6 {[%emt 1:32:39]} 7. d4 {[%emt 0:00:42]} cxd4 {[%emt 0:00:00]} 8. Qxd4 {[%emt 0:00:17]} Be7 {[%emt 0:00:00]} 9. b3 {[%emt 0:00:13]} O-O {[%emt 0:00:00]} 10. Bb2 {[%emt 0:00:21]} a6 {[%emt 0:00:00]} 11. e4 {[%emt 0:01:59]} Nbd7 {[%emt 0:00:00]} 12. Rfe1 {[%emt 0:00:33]} Qc7 {[%emt 0:00:00]} 13. Rac1 {[%emt 0:01:30]} Rac8 {[%emt 0:00:00]} 14. Qd2 {[%emt 0:05:09]} Rfd8 {[%emt 0:00:00]} 15. Nd4 {[%emt 0:01:18]} Qb8 {[%emt 0:00:00] White has an edge.} 16. h3 {[%emt 0:02:51]} Bf8 {[%emt 0:00:00]} 17. f4 {[%emt 0:02:04]} (17. Qe3 $142) 17... Qa8 {[%emt 0:00:00]} (17... b5 $142) 18. g4 {[%emt 0:04:22]} (18. Kh2 $1 $11) 18... Nc5 {[%emt 0:00:00]} (18... b5 $15) 19. Qe3 {[%emt 0:01:14]} (19. Qe2 $142 $1) 19... e5 $11 {[%emt 0:00:00]} 20. Nf5 {[%emt 0:01:10]} exf4 {[%emt 0:00:00]} 21. Qxf4 {[%emt 0:00:09] [#] Black must now prevent Nd5.} Nd3 {[%emt 0:00:00][%csl LRb2,LRc1,LRe1,LRf4]} 22. Qg5 {[%emt 0:00:36][%cal Oc3d5] Strongly threatening Nd5!} Nxb2 $2 {[%emt 0:00:00]} (22... Kh8 $1 $11) 23. Nh6+ $16 {[%emt 0:01:01] White is clearly better.} Kh8 {[%emt 0:00:00] ...Rc7 is the strong threat.} 24. Nxf7+ {[%emt 0:00:07]} Kg8 {[%emt 0:00:00]} 25. Nh6+ $2 {[%emt 0:00:05] Weighted Error Value: White=0.25 (precise) /Black=0.39.  Missed win:     	White=1     	---        Mistake:       	White=3     	Black=3      Inaccurate:     	---       	Black=1      OK:         	White=3     	Black=2      Best:        	White=2     	Black=1} (25. Nxd8 $18 Rxd8 26. Qd2) 1/2-1/2

[Event "MCC Labor Day Schev 2024"]
[Site "New York"]
[Date "2024.09.01"]
[Round "5.5"]
[White "Zhao, Alex"]
[Black "Sarkar, Justin"]
[Result "0-1"]
[ECO "A04"]
[WhiteElo "2043"]
[BlackElo "2276"]
[Annotator "TA"]
[PlyCount "88"]
[EventDate "2024.08.28"]
[EventType "schev"]
[EventCountry "USA"]
[SourceTitle "playchess.com"]
[Source "ChessBase"]
[SourceQuality "1"]
[TimeControl "5400+30"]

{[%evp 9,88,-11,4,-6,-4,0,7,0,0,-16,8,-16,-17,-18,-17,-18,-10,-31,-29,-42,-21,-22,-31,-69,-55,-68,-58,-70,-71,-55,-58,-71,-48,-60,-54,-89,-74,-76,-82,-87,-75,-83,-82,-101,-97,-132,-133,-137,-131,-152,-147,-171,-166,-182,-168,-163,-68,-124,-109,-356,-321,-416,-402,-470,-453,-472,-465,-512,-505,-611,-610,-647,-674,-766,-604,-1241,-1168,-1020,-963,-6725,-5931]} 1. Nf3 {[%emt 0:04:16]} c5 {[%emt 0:00:24]} 2. g3 {[%emt 0:00:09]} g6 {[%emt 0:00:34]} 3. Bg2 {[%emt 0:00:10]} Bg7 {[%emt 0:00:06]} 4. O-O {[%emt 0:00:42]} Nc6 {[%emt 0:00:30]} 5. d3 {[%emt 0:00:46]} d6 {[%emt 0:01:38][%cal Bd7d6,Bd6d5,Bd5d4][%mdl 32]} 6. c4 {[%emt 0:01:55]} e6 {[%emt 0:01:59]} 7. Nc3 {[%emt 0:01:37]} Nge7 {[%emt 0:00:25]} 8. Bd2 {[%emt 0:07:03] The position is equal.} O-O {[%emt 0:04:15]} 9. Qc1 {[%emt 0:00:53]} d5 {[%emt 0:01:42]} 10. Bh6 {[%emt 0:03:48]} d4 {[%emt 0:02:21]} 11. Bxg7 {[%emt 0:05:07]} Kxg7 {[%emt 0:00:07]} 12. Ne4 {[%emt 0:07:54]} b6 {[%emt 0:01:23]} 13. e3 {[%emt 0:09:25]} Rb8 {[%emt 0:02:20]} 14. Re1 {[%emt 0:09:48]} f6 {[%emt 0:03:30]} 15. exd4 {[%emt 0:01:44]} Nxd4 {[%emt 0:00:14]} 16. Qc3 {[%emt 0:03:31]} Nxf3+ {[%emt 0:05:36]} 17. Bxf3 {[%emt 0:00:04]} Nf5 {[%emt 0:00:11]} 18. Bg2 {[%emt 0:03:28]} e5 {[%emt 0:03:17]} 19. b4 {[%emt 0:02:51]} cxb4 {[%emt 0:01:00]} 20. Qxb4 {[%emt 0:00:02]} Nd4 {[%emt 0:00:14]} 21. Rac1 {[%emt 0:01:30] Dodges Nc2} Bb7 {[%emt 0:01:19]} 22. Qd6 {[%emt 0:11:14]} Bxe4 {[%emt 0:11:41]} 23. Qxd8 {[%emt 0:00:12]} Rfxd8 {[%emt 0:00:09]} 24. Bxe4 {[%emt 0:01:56]} Rbc8 {[%emt 0:00:11]} 25. Kg2 {[%emt 0:01:40]} Rc5 {[%emt 0:02:06]} 26. a3 {[%emt 0:04:12]} Rdc8 {[%emt 0:02:22]} 27. f4 {[%emt 0:02:27]} exf4 {[%emt 0:02:56]} 28. gxf4 {[%emt 0:00:03] [#]} Ra5 $1 {[%emt 0:00:37]} 29. Rc3 {[%emt 0:01:44]} Re8 {[%emt 0:00:12] Hoping for ...f5.} 30. Rf1 {[%emt 0:04:37]} f5 {[%emt 0:02:21]} 31. Bf3 {[%emt 0:01:58]} h6 {[%emt 0:08:59]} 32. h4 {[%emt 0:01:14]} Kf6 {[%emt 0:02:56]} (32... Re3 $19 33. Rf2 Re1) 33. Bd1 {[%emt 0:02:43]} ({Better is} 33. Kf2 $15) 33... Re3 $36 {[%emt 0:04:21][%mdl 2048] Keeping White busy. Black is much more active.} 34. Kf2 $2 {[%emt 0:00:32] [#] Loses the game.} (34. Rh1 $17 {might work better.}) 34... Rh3 $19 {[%emt 0:01:30]} 35. Kg2 {[%emt 0:00:10]} Rxh4 {[%emt 0:01:36]} 36. Kg3 {[%emt 0:00:50]} g5 {[%emt 0:00:06] Black is clearly winning.} 37. a4 {[%emt 0:01:27]} Ne6 {[%emt 0:01:10][%cal Re6f4]} 38. fxg5+ {[%emt 0:01:27]} hxg5 {[%emt 0:00:12]} 39. Ra3 {[%emt 0:01:09]} f4+ {[%emt 0:11:10]} 40. Kg2 {[%emt 0:00:08]} Nd4 {[%emt 0:00:42]} 41. Ra2 {[%emt 0:00:59]} Kf5 {[%emt 0:00:38]} 42. Rh1 {[%emt 0:00:58]} Rxh1 {[%emt 0:02:26]} 43. Kxh1 {[%emt 0:00:04]} f3 {[%emt 0:00:25]} 44. Rh2 {[%emt 0:00:09]} Re5 {[%emt 0:00:08] Weighted Error Value: White=0.63/Black=0.11 (very precise) .  Loses game:     	White=1     	---        Mistake:       	White=1     	Black=1      Inaccurate:     	White=3     	---        OK:         	White=10    	Black=15     Best:        	---       	Black=4      Strong:       	---       	Black=1} 0-1